fUST/lending_fUST_20250726
["ID","MTS","AMOUNT","RATE_DAILY","PERIOD"]
[375103937,1753529438402,-263.09915741,0.00019178,2]
[375103939,1753529438411,-460.0,0.00019178,2]
[375103941,1753529438420,-460.0,0.00019178,2]
[375103943,1753529438430,-460.0,0.00019178,2]
[375103945,1753529438439,-460.0,0.00019178,2]
[375103947,1753529438449,-460.0,0.00019178,2]
[375103949,1753529438458,-460.0,0.00019178,2]
[375103951,1753529438468,-500.0,0.00019178,2]
[375103953,1753529438477,-500.0,0.00019178,2]
[375103955,1753529438487,-500.0,0.00019178,2]
[375103957,1753529438496,-460.0,0.00019178,2]
[375103959,1753529438505,-460.0,0.00019178,2]
[375103961,1753529438515,-460.0,0.00019178,2]
[375103963,1753529438525,-460.0,0.00019178,2]
[375103965,1753529438535,-460.0,0.00019178,2]
[375103967,1753529438544,-4000.63,0.00019178,2]
[375103969,1753529438553,-460.0,0.00019178,2]
[375103971,1753529438563,-460.0,0.00019178,2]
[375103973,1753529438572,-460.0,0.00019178,2]
[375103975,1753529438583,-460.0,0.00019178,2]
[375103977,1753529438592,-460.0,0.00019178,2]
[375103979,1753529438602,-460.0,0.00019178,2]
[375103981,1753529438612,-460.0,0.00019178,2]
[375103983,1753529438621,-460.0,0.00019178,2]
[375103985,1753529438631,-460.0,0.00019178,2]
[375103987,1753529438640,-460.0,0.00019178,2]
[375103989,1753529438649,-1081.06,0.00019178,2]
[375103991,1753529438659,-460.0,0.00019178,2]
[375103993,1753529438668,-460.0,0.00019178,2]
[375103995,1753529438678,-460.0,0.00019178,2]
[375103997,1753529438686,-460.0,0.00019178,2]
[375103999,1753529438697,-460.0,0.00019178,2]
[375104001,1753529438706,-460.0,0.00019178,2]
[375104003,1753529438715,-460.0,0.00019178,2]
[375104005,1753529438724,-1328.36,0.00019178,2]
[375104007,1753529438733,-329.18530784,0.00019178,2]
[375104009,1753529438742,-460.0,0.00019178,2]
[375104011,1753529438752,-460.0,0.00019178,2]
[375104013,1753529438761,-460.0,0.00019178,2]
[375104015,1753529438771,-460.0,0.00019178,2]
[375104017,1753529438780,-726.9,0.00019178,2]
[375104019,1753529438789,-460.0,0.00019178,2]
[375104021,1753529438798,-507.67,0.00019178,2]
[375104023,1753529438810,-276.21034575,0.00019178,2]
[375104025,1753529438823,-460.0,0.00019178,2]
[375104027,1753529438832,-460.0,0.00019178,2]
[375104029,1753529438841,-460.0,0.00019178,2]
[375104031,1753529438851,-449.74909214,0.00019178,2]
[375104033,1753529438860,-460.0,0.00019178,2]
[375104035,1753529438871,-460.0,0.00019178,2]
[375104037,1753529438880,-460.0,0.00019178,2]
[375104039,1753529438889,-2765.05,0.00019178,2]
[375104040,1753529438898,-460.0,0.00019178,2]
[375104042,1753529438907,-626.15,0.00019178,2]
[375104045,1753529438917,-460.0,0.00019178,2]
[375104046,1753529438926,-460.0,0.00019178,2]
[375104048,1753529438935,-460.0,0.00019178,2]
[375104050,1753529438944,-460.0,0.00019178,2]
[375104052,1753529438954,-460.0,0.00019178,2]
[375104054,1753529438963,-460.0,0.00019178,2]
[375104056,1753529438973,-460.0,0.00019178,2]
[375104059,1753529438983,-460.0,0.00019178,2]
[375104061,1753529438993,-749.5,0.00019178,2]
[375104063,1753529439002,-460.0,0.00019178,2]
[375104064,1753529439011,-500.0,0.00019178,2]
[375104066,1753529439022,-411.086028,0.00019178,2]
[375104068,1753529439031,-666.0,0.00019178,2]
[375104070,1753529439040,-583.55845871,0.00019329,2]
[375104072,1753529439050,-460.0,0.00019452,2]
[375104074,1753529439059,-460.0,0.00019452,2]
[375104076,1753529439069,-576.25984744,0.00019452,2]
[375104078,1753529439079,-460.0,0.00019452,2]
[375104080,1753529439089,-460.0,0.00019452,2]
[375104082,1753529439098,-460.0,0.00019452,2]
[375104084,1753529439110,-460.0,0.00019452,2]
[375104086,1753529439119,-460.0,0.00019452,2]
[375104088,1753529439130,-460.0,0.00019452,2]
[375104090,1753529439141,-407.41580795,0.00019452,2]
[375104092,1753529439151,-465.05905235,0.00019452,2]
[375104094,1753529439163,-460.0,0.00019452,2]
[375104096,1753529439175,-460.0,0.00019452,2]
[375104098,1753529439187,-397.38933981,0.00019452,2]
[375104100,1753529439202,-463.30864532,0.00019452,2]
[375104102,1753529439215,-460.0,0.00019452,2]
[375104104,1753529439226,-579.61259138,0.00019452,2]
[375104113,1753529439335,-460.0,0.00019452,2]
[375104116,1753529439351,-460.0,0.00019452,2]
[375104117,1753529439361,-460.0,0.00019452,2]
[375104119,1753529439373,-460.0,0.00019452,2]
[375104121,1753529439387,-460.0,0.00019452,2]
[375104123,1753529439400,-276.56091141,0.00019452,2]
[375104125,1753529439411,-460.0,0.00019452,2]
[375104127,1753529439423,-460.0,0.00019452,2]
[375104129,1753529439437,-460.0,0.00019452,2]
[375104131,1753529439452,-460.0,0.00019452,2]
[375104133,1753529439465,-460.0,0.00019452,2]
[375104135,1753529439478,-460.0,0.00019452,2]
[375104137,1753529439493,-460.0,0.00019452,2]
[375104139,1753529439507,-460.0,0.00019452,2]
[375104141,1753529439532,-460.0,0.00019452,2]
[375104143,1753529439551,-460.0,0.00019452,2]
[375104145,1753529439564,-460.0,0.00019452,2]
[375104146,1753529439577,-460.0,0.00019452,2]
[375104148,1753529439593,-460.0,0.00019452,2]
[375104150,1753529439605,-460.0,0.00019452,2]
[375104153,1753529439618,-460.0,0.00019452,2]
[375104156,1753529439630,-460.0,0.00019452,2]
[375104159,1753529439643,-460.0,0.00019452,2]
[375104161,1753529439654,-544.05316234,0.00019452,2]
[375104163,1753529439666,-460.0,0.00019452,2]
[375104165,1753529439678,-460.0,0.00019452,2]
[375104167,1753529439689,-460.0,0.00019452,2]
[375104169,1753529439700,-460.0,0.00019452,2]
[375104171,1753529439711,-460.0,0.00019452,2]
[375104173,1753529439722,-460.0,0.00019452,2]
[375104175,1753529439733,-460.0,0.00019452,2]
[375104177,1753529439744,-460.0,0.00019452,2]
[375104179,1753529439754,-460.0,0.00019452,2]
[375104180,1753529439764,-460.0,0.00019452,2]
[375104182,1753529439774,-460.0,0.00019452,2]
[375104184,1753529439784,-460.0,0.00019452,2]
[375104186,1753529439795,-460.0,0.00019452,2]
[375104188,1753529439806,-460.0,0.00019452,2]
[375104190,1753529439818,-460.0,0.00019452,2]
[375104192,1753529439829,-460.0,0.00019452,2]
[375104194,1753529439840,-460.0,0.00019452,2]
[375104196,1753529439850,-460.0,0.00019452,2]
[375104198,1753529439861,-502.38472546,0.00019452,2]
[375104200,1753529439872,-460.0,0.00019452,2]
[375104202,1753529439884,-474.93502964,0.00019452,2]
[375104204,1753529439895,-460.0,0.00019452,2]
[375104206,1753529439906,-460.0,0.00019452,2]
[375104208,1753529439917,-181.0372985,0.00019452,2]
[375104210,1753529439927,-460.0,0.00019452,2]
[375104212,1753529439938,-460.0,0.00019452,2]
[375104214,1753529439948,-368.10491681,0.00019452,2]
[375104216,1753529439958,-1040.84,0.00019452,2]
[375104218,1753529439968,-920.08,0.00019452,2]
[375104220,1753529439978,-460.0,0.00019452,2]
[375104222,1753529439989,-1072.59,0.00019452,2]
[375104224,1753529440000,-460.0,0.00019452,2]
[375104226,1753529440010,-460.0,0.00019452,2]
[375104228,1753529440033,-318.0767341,0.00019452,2]
[375104230,1753529440044,-460.0,0.00019452,2]
[375104232,1753529440055,-460.0,0.00019452,2]
[375104234,1753529440065,-460.0,0.00019452,2]
[375104236,1753529440077,-460.0,0.00019452,2]
[375104238,1753529440088,-460.0,0.00019452,2]
[375104240,1753529440097,-1739.7,0.00019452,2]
[375104242,1753529440108,-460.0,0.00019452,2]
[375104244,1753529440118,-460.0,0.00019452,2]
[375104246,1753529440128,-460.0,0.00019452,2]
[375104248,1753529440138,-460.0,0.00019452,2]
[375104250,1753529440149,-250.91187022,0.00019452,2]
[375104252,1753529440159,-460.0,0.00019452,2]
[375104254,1753529440170,-460.0,0.00019452,2]
[375104256,1753529440181,-758.04,0.00019452,2]
[375104258,1753529440192,-460.0,0.00019452,2]
[375104260,1753529440202,-507.11,0.00019452,2]
[375104262,1753529440216,-460.0,0.00019452,2]
[375104264,1753529440226,-460.0,0.00019452,2]
[375104266,1753529440236,-460.0,0.00019452,2]
[375104268,1753529440247,-460.0,0.00019452,2]
[375104270,1753529440257,-460.0,0.00019452,2]
[375104272,1753529440267,-460.0,0.00019452,2]
[375104274,1753529440276,-460.0,0.00019452,2]
[375104276,1753529440286,-463.11919013,0.00019452,2]
[375104278,1753529440296,-1371.26,0.00019452,2]
[375104280,1753529440305,-1276.4,0.00019452,2]
[375104282,1753529440315,-591.69,0.00019452,2]
[375104284,1753529440324,-460.0,0.00019452,2]
[375104286,1753529440334,-460.0,0.00019452,2]
[375104288,1753529440344,-460.0,0.00019452,2]
[375104290,1753529440354,-460.0,0.00019452,2]
[375104292,1753529440364,-460.0,0.00019452,2]
[375104294,1753529440373,-460.0,0.00019452,2]
[375104296,1753529440383,-460.0,0.00019452,2]
[375104298,1753529440393,-460.0,0.00019452,2]
[375104300,1753529440402,-460.0,0.00019452,2]
[375104302,1753529440412,-460.0,0.00019452,2]
[375104304,1753529440421,-460.0,0.00019452,2]
[375104306,1753529440431,-460.0,0.00019452,2]
[375104308,1753529440441,-460.0,0.00019452,2]
[375104310,1753529440452,-460.0,0.00019452,2]
[375104312,1753529440462,-1115.3,0.00019452,2]
[375104314,1753529440472,-842.29,0.00019452,2]
[375104316,1753529440482,-460.0,0.00019452,2]
[375104318,1753529440493,-460.0,0.00019452,2]
[375104320,1753529440503,-460.0,0.00019452,2]
[375104322,1753529440513,-501.8737912,0.00019452,2]
[375104324,1753529440535,-1177.67,0.00019452,2]
[375104326,1753529440546,-460.0,0.00019452,2]
[375104328,1753529440556,-460.0,0.00019452,2]
[375104330,1753529440567,-460.0,0.00019452,2]
[375104332,1753529440578,-460.0,0.00019452,2]
[375104334,1753529440589,-460.0,0.00019452,2]
[375104336,1753529440599,-460.0,0.00019452,2]
[375104338,1753529440610,-460.0,0.00019452,2]
[375104340,1753529440621,-460.0,0.00019452,2]
[375104342,1753529440632,-460.0,0.00019452,2]
[375104344,1753529440642,-4000.63,0.00019452,2]
[375104346,1753529440653,-460.0,0.00019452,2]
[375104348,1753529440663,-460.0,0.00019452,2]
[375104350,1753529440674,-460.0,0.00019452,2]
[375104352,1753529440683,-460.0,0.00019452,2]
[375104354,1753529440694,-460.0,0.00019452,2]
[375104356,1753529440705,-460.0,0.00019452,2]
[375104358,1753529440717,-460.0,0.00019452,2]
[375104360,1753529440728,-533.01018085,0.00019452,2]
[375104362,1753529440739,-460.0,0.00019452,2]
[375104364,1753529440750,-1081.06,0.00019452,2]
[375104366,1753529440761,-460.0,0.00019452,2]
[375104368,1753529440780,-460.0,0.00019452,2]
[375104370,1753529440792,-460.0,0.00019452,2]
[375104371,1753529440804,-460.0,0.00019452,2]
[375104373,1753529440815,-460.0,0.00019452,2]
[375104376,1753529440827,-1328.36,0.00019452,2]
[375104378,1753529440838,-460.0,0.00019452,2]
[375104379,1753529440848,-460.0,0.00019452,2]
[375104381,1753529440859,-460.0,0.00019452,2]
[375104383,1753529440870,-460.0,0.00019452,2]
[375104385,1753529440880,-726.9,0.00019452,2]
[375104387,1753529440890,-507.67,0.00019452,2]
[375104389,1753529440900,-460.0,0.00019452,2]
[375104391,1753529440910,-162.59938581,0.00019452,2]
[375104393,1753529440919,-460.0,0.00019452,2]
[375104395,1753529440929,-460.0,0.00019452,2]
[375104397,1753529440939,-2765.05,0.00019452,2]
[375104399,1753529440948,-626.15,0.00019452,2]
[375104401,1753529440957,-460.0,0.00019452,2]
[375104403,1753529440966,-460.0,0.00019452,2]
[375104405,1753529440975,-460.0,0.00019452,2]
[375104407,1753529440985,-460.0,0.00019452,2]
[375104409,1753529440994,-460.0,0.00019452,2]
[375104411,1753529441003,-749.5,0.00019452,2]
[375104413,1753529441012,-501.99924546,0.00019473,2]
[375104415,1753529441026,-500.0,0.00019473,2]
[375104417,1753529441036,-284.43077672,0.00019721,2]
[375104419,1753529441046,-500.0,0.00019721,2]
[375104421,1753529441060,-460.0,0.00019726,2]
[375104423,1753529441070,-460.0,0.00019726,2]
[375104425,1753529441079,-460.0,0.00019726,2]
[375104427,1753529441088,-254.29528754,0.00019726,2]
[375104429,1753529441098,-460.0,0.00019726,2]
[375104431,1753529441108,-460.0,0.00019726,2]
[375104433,1753529441118,-460.0,0.00019726,2]
[375104435,1753529441128,-460.0,0.00019726,2]
[375104437,1753529441138,-460.0,0.00019726,2]
[375104439,1753529441148,-460.0,0.00019726,2]
[375104441,1753529441157,-460.0,0.00019726,2]
[375104443,1753529441167,-460.0,0.00019726,2]
[375104445,1753529441177,-460.0,0.00019726,2]
[375104447,1753529441187,-460.0,0.00019726,2]
[375104448,1753529441201,-460.0,0.00019726,2]
[375104450,1753529441211,-460.0,0.00019726,2]
[375104452,1753529441220,-460.0,0.00019726,2]
[375104454,1753529441230,-460.0,0.00019726,2]
[375104456,1753529441240,-460.0,0.00019726,2]
[375104458,1753529441249,-472.89,0.00019726,2]
[375104460,1753529441259,-460.0,0.00019726,2]
[375104462,1753529441274,-460.0,0.00019726,2]
[375104464,1753529441283,-460.0,0.00019726,2]
[375104466,1753529441293,-460.0,0.00019726,2]
[375104468,1753529441302,-460.0,0.00019726,2]
[375104470,1753529441312,-460.0,0.00019726,2]
[375104472,1753529441322,-460.0,0.00019726,2]
[375104474,1753529441333,-593.44764747,0.00019726,2]
[375104476,1753529441343,-580.70053603,0.00019726,2]
[375104478,1753529441352,-399.49130889,0.00019726,2]
[375104480,1753529441362,-460.0,0.00019726,2]
[375104482,1753529441371,-460.0,0.00019726,2]
[375104484,1753529441381,-460.0,0.00019726,2]
[375104486,1753529441390,-460.0,0.00019726,2]
[375104488,1753529441400,-460.0,0.00019726,2]
[375104490,1753529441409,-460.0,0.00019726,2]
[375104492,1753529441419,-460.0,0.00019726,2]
[375104494,1753529441428,-362.3863307,0.00019726,2]
[375104496,1753529441438,-1040.84,0.00019726,2]
[375104498,1753529441447,-920.08,0.00019726,2]
[375104500,1753529441456,-1072.59,0.00019726,2]
[375104502,1753529441466,-460.0,0.00019726,2]
[375104504,1753529441475,-460.0,0.00019726,2]
[375104506,1753529441484,-460.0,0.00019726,2]
[375104508,1753529441494,-1739.7,0.00019726,2]
[375104510,1753529441503,-460.0,0.00019726,2]
[375104512,1753529441514,-460.0,0.00019726,2]
[375104514,1753529441528,-460.0,0.00019726,2]
[375104516,1753529441538,-758.04,0.00019726,2]
[375104518,1753529441547,-460.0,0.00019726,2]
[375104520,1753529441556,-460.0,0.00019726,2]
[375104522,1753529441565,-507.11,0.00019726,2]
[375104524,1753529441574,-460.0,0.00019726,2]
[375104526,1753529441583,-460.0,0.00019726,2]
[375104528,1753529441592,-460.0,0.00019726,2]
[375104530,1753529441602,-460.0,0.00019726,2]
[375104532,1753529441612,-1371.26,0.00019726,2]
[375104534,1753529441621,-1276.4,0.00019726,2]
[375104536,1753529441631,-591.69,0.00019726,2]
[375104538,1753529441641,-460.0,0.00019726,2]
[375104540,1753529441651,-460.0,0.00019726,2]
[375104551,1753529441747,-460.0,0.00019726,2]
[375104553,1753529441767,-460.0,0.00019726,2]
[375104555,1753529441781,-460.0,0.00019726,2]
[375104557,1753529441790,-460.0,0.00019726,2]
[375104559,1753529441799,-460.0,0.00019726,2]
[375104561,1753529441809,-460.0,0.00019726,2]
[375104563,1753529441818,-533.23923336,0.00019726,2]
[375104565,1753529441829,-1115.3,0.00019726,2]
[375104567,1753529441839,-842.29,0.00019726,2]
[375104569,1753529441849,-460.0,0.00019726,2]
[375104571,1753529441858,-1177.67,0.00019726,2]
[375104573,1753529441868,-460.0,0.00019726,2]
[375104575,1753529441877,-181.24671501,0.00019726,2]
[375104577,1753529441887,-460.0,0.00019726,2]
[375104579,1753529441897,-460.0,0.00019726,2]
[375104581,1753529441906,-460.0,0.00019726,2]
[375104583,1753529441915,-460.0,0.00019726,2]
[375104585,1753529441925,-460.0,0.00019726,2]
[375104587,1753529441934,-4000.63,0.00019726,2]
[375104589,1753529441943,-460.0,0.00019726,2]
[375104591,1753529441952,-460.0,0.00019726,2]
[375104593,1753529441961,-460.0,0.00019726,2]
[375104595,1753529441971,-266.78977484,0.00019726,2]
[375104597,1753529441981,-1081.06,0.00019726,2]
[375104599,1753529441990,-460.0,0.00019726,2]
[375104600,1753529442000,-460.0,0.00019726,2]
[375104603,1753529442010,-460.0,0.00019726,2]
[375104605,1753529442026,-1328.36,0.00019726,2]
[375104607,1753529442036,-460.0,0.00019726,2]
[375104609,1753529442045,-460.0,0.00019726,2]
[375104610,1753529442054,-286.74176965,0.00019726,2]
[375104612,1753529442065,-726.9,0.00019726,2]
[375104615,1753529442075,-507.67,0.00019726,2]
[375104617,1753529442085,-460.0,0.00019726,2]
[375104619,1753529442095,-460.0,0.00019726,2]
[375104620,1753529442105,-2765.05,0.00019726,2]
[375104623,1753529442114,-626.15,0.00019726,2]
[375104625,1753529442124,-460.0,0.00019726,2]
[375104626,1753529442133,-460.0,0.00019726,2]
[375104628,1753529442144,-460.0,0.00019726,2]
[375104630,1753529442154,-460.0,0.00019726,2]
[375104632,1753529442163,-460.0,0.00019726,2]
[375104634,1753529442173,-749.5,0.00019726,2]
[375104636,1753529442182,-500.0,0.00019773,2]
[375104638,1753529442193,-500.0,0.00019773,2]
[375104640,1753529442203,-223.0315306,0.00019877,2]
[375104642,1753529442212,-5465.89716836,0.00019877,2]
[375104644,1753529442220,-460.0,0.0002,2]
[375104646,1753529442229,-383.62028269,0.0002,2]
[375104648,1753529442239,-460.0,0.0002,2]
[375104650,1753529442248,-460.0,0.0002,2]
[375104652,1753529442257,-460.0,0.0002,2]
[375104654,1753529442266,-578.6035736,0.0002,2]
[375104657,1753529442283,-460.0,0.0002,2]
[375104659,1753529442292,-460.0,0.0002,2]
[375104661,1753529442302,-460.0,0.0002,2]
[375104663,1753529442311,-460.0,0.0002,2]
[375104664,1753529442320,-460.0,0.0002,2]
[375104666,1753529442330,-460.0,0.0002,2]
[375104668,1753529442339,-460.0,0.0002,2]
[375104670,1753529442348,-460.0,0.0002,2]
[375104672,1753529442356,-460.0,0.0002,2]
[375104674,1753529442365,-460.0,0.0002,2]
[375104676,1753529442374,-460.0,0.0002,2]
[375104678,1753529442384,-460.0,0.0002,2]
[375104680,1753529442393,-460.0,0.0002,2]
[375104682,1753529442403,-460.0,0.0002,2]
[375104684,1753529442412,-239.96742986,0.0002,2]
[375104694,1753529442509,-220.03257014,0.0002,2]
[375104696,1753529442529,-460.0,0.0002,2]
[375104698,1753529442539,-1040.84,0.0002,2]
[375104700,1753529442549,-920.08,0.0002,2]
[375104702,1753529442558,-1072.59,0.0002,2]
[375104704,1753529442567,-460.0,0.0002,2]
[375104706,1753529442576,-460.0,0.0002,2]
[375104708,1753529442586,-460.0,0.0002,2]
[375104711,1753529442601,-1739.7,0.0002,2]
[375104713,1753529442611,-460.0,0.0002,2]
[375104716,1753529442622,-460.0,0.0002,2]
[375104718,1753529442631,-758.04,0.0002,2]
[375104722,1753529442641,-460.0,0.0002,2]
[375104725,1753529442650,-460.0,0.0002,2]
[375104728,1753529442660,-507.11,0.0002,2]
[375104731,1753529442669,-460.0,0.0002,2]
[375104734,1753529442678,-460.0,0.0002,2]
[375104737,1753529442687,-460.0,0.0002,2]
[375104740,1753529442696,-1371.26,0.0002,2]
[375104743,1753529442705,-1276.4,0.0002,2]
[375104744,1753529442714,-591.69,0.0002,2]
[375104745,1753529442723,-143.94520156,0.0002,2]
[375104747,1753529442739,-316.05479844,0.0002,2]
[375104748,1753529442748,-460.0,0.0002,2]
[375104749,1753529442757,-237.52443986,0.0002,2]
[375104750,1753529442769,-312.99382931,0.0002,2]
[375104751,1753529442783,-387.51977056,0.0002,2]
[375104752,1753529442794,-72.48022944,0.0002,2]
[375104753,1753529442803,-460.0,0.0002,2]
[375104754,1753529442812,-460.0,0.0002,2]
[375104755,1753529442822,-1115.3,0.0002,2]
[375104756,1753529442831,-842.29,0.0002,2]
[375104757,1753529442841,-460.0,0.0002,2]
[375104758,1753529442850,-1177.67,0.0002,2]
[375104759,1753529442860,-460.0,0.0002,2]
[375104760,1753529442869,-460.0,0.0002,2]
[375104761,1753529442879,-460.0,0.0002,2]
[375104763,1753529442888,-460.0,0.0002,2]
[375104764,1753529442898,-4000.63,0.0002,2]
[375104766,1753529442909,-460.0,0.0002,2]
[375104768,1753529442918,-460.0,0.0002,2]
[375104770,1753529442928,-460.0,0.0002,2]
[375104772,1753529442937,-467.92723857,0.0002,2]
[375104774,1753529442947,-1081.06,0.0002,2]
[375104776,1753529442957,-460.0,0.0002,2]
[375104778,1753529442966,-460.0,0.0002,2]
[375104780,1753529442976,-1328.36,0.0002,2]
[375104782,1753529442985,-460.0,0.0002,2]
[375104784,1753529442994,-460.0,0.0002,2]
[375104786,1753529443004,-726.9,0.0002,2]
[375104788,1753529443014,-507.67,0.0002,2]
[375104790,1753529443027,-460.0,0.0002,2]
[375104792,1753529443037,-460.0,0.0002,2]
[375104794,1753529443047,-2765.05,0.0002,2]
[375104796,1753529443056,-626.15,0.0002,2]
[375104798,1753529443065,-460.0,0.0002,2]
[375104800,1753529443075,-460.0,0.0002,2]
[375104802,1753529443084,-460.0,0.0002,2]
[375104804,1753529443094,-749.5,0.0002,2]
[375104806,1753529443104,-1276.03055214,0.00020011,2]
[375104808,1753529443113,-160.0,0.00020067,2]
[375104810,1753529443122,-160.0,0.00020067,2]
[375104812,1753529443132,-160.0,0.00020067,2]
[375104814,1753529443141,-840.57612966,0.00020067,2]
[375104816,1753529443151,-476.98041219,0.00020067,2]
[375104818,1753529443160,-160.0,0.00020067,2]
[375104820,1753529443169,-214.8008262,0.00020067,2]
[375104822,1753529443178,-312.16666667,0.00020067,2]
[375104824,1753529443188,-160.0,0.00020067,2]
[375104826,1753529443198,-12629.83479014,0.00020067,2]
[375104828,1753529443208,-160.0,0.00020067,2]
[375104830,1753529443220,-215.9757969,0.00020067,2]
[375104832,1753529443229,-526.41699184,0.00020067,2]
[375104834,1753529443238,-231.25662632,0.00020067,2]
[375104836,1753529443247,-160.0,0.00020068,2]
[375104838,1753529443256,-150.0,0.00020092,2]
[375104840,1753529443266,-178.093261,0.00020187,2]
[375104842,1753529443279,-160.0,0.00020257,2]
[375104844,1753529443290,-460.0,0.00020273,2]
[375104846,1753529443299,-460.0,0.00020273,2]
[375104848,1753529443309,-460.0,0.00020273,2]
[375104850,1753529443318,-460.0,0.00020273,2]
[375104852,1753529443329,-489.27542951,0.00020273,2]
[375104854,1753529443339,-460.0,0.00020273,2]
[375104856,1753529443348,-460.0,0.00020273,2]
[375104858,1753529443357,-460.0,0.00020273,2]
[375104860,1753529443367,-460.0,0.00020273,2]
[375104862,1753529443376,-460.0,0.00020273,2]
[375104864,1753529443386,-460.0,0.00020273,2]
[375104866,1753529443396,-460.0,0.00020273,2]
[375104867,1753529443405,-460.0,0.00020273,2]
[375104869,1753529443414,-460.0,0.00020273,2]
[375104871,1753529443423,-1040.84,0.00020273,2]
[375104873,1753529443432,-920.08,0.00020273,2]
[375104875,1753529443442,-1072.59,0.00020273,2]
[375104877,1753529443451,-312.79382475,0.00020273,2]
[375104879,1753529443462,-460.0,0.00020273,2]
[375104881,1753529443471,-460.0,0.00020273,2]
[375104883,1753529443480,-1739.7,0.00020273,2]
[375104885,1753529443490,-460.0,0.00020273,2]
[375104887,1753529443499,-460.0,0.00020273,2]
[375104889,1753529443509,-758.04,0.00020273,2]
[375104891,1753529443518,-460.0,0.00020273,2]
[375104893,1753529443531,-460.0,0.00020273,2]
[375104895,1753529443540,-507.11,0.00020273,2]
[375104897,1753529443550,-460.0,0.00020273,2]
[375104899,1753529443559,-460.0,0.00020273,2]
[375104901,1753529443569,-460.0,0.00020273,2]
[375104903,1753529443578,-1371.26,0.00020273,2]
[375104915,1753529443587,-1276.4,0.00020273,2]
[375104917,1753529443687,-591.69,0.00020273,2]
[375104918,1753529443697,-460.0,0.00020273,2]
[375104919,1753529443707,-460.0,0.00020273,2]
[375104920,1753529443716,-460.0,0.00020273,2]
[375104921,1753529443725,-460.0,0.00020273,2]
[375104922,1753529443735,-460.0,0.00020273,2]
[375104923,1753529443744,-1115.3,0.00020273,2]
[375104924,1753529443754,-842.29,0.00020273,2]
[375104925,1753529443763,-460.0,0.00020273,2]
[375104926,1753529443777,-1177.67,0.00020273,2]
[375104927,1753529443787,-460.0,0.00020273,2]
[375104928,1753529443796,-460.0,0.00020273,2]
[375104929,1753529443805,-460.0,0.00020273,2]
[375104930,1753529443815,-4000.63,0.00020273,2]
[375104931,1753529443825,-460.0,0.00020273,2]
[375104932,1753529443835,-460.0,0.00020273,2]
[375104933,1753529443845,-460.0,0.00020273,2]
[375104934,1753529443854,-1081.06,0.00020273,2]
[375104935,1753529443863,-460.0,0.00020273,2]
[375104936,1753529443873,-460.0,0.00020273,2]
[375104937,1753529443882,-1328.36,0.00020273,2]
[375104938,1753529443891,-460.0,0.00020273,2]